[Event "Titled Tuesday Blitz January 03 Late 2023"]
[White "Kovacs, Klara"]
[Black "Keller, Peter"]
[WhiteFideId "733210"]
[BlackFideId "1272105"]
[WhiteElo "2121"]
[BlackElo "2358"]
[Result "1-0"]
[Round "09"]
[TimeControl "180+2"]
[Date "2023.01.03"]
[WhiteClock "0:01:28"]
[BlackClock "0:00:01"]

1. Nf3 {[%clk 0:02:57]}  f5 {[%clk 0:02:50]} 2. g3 {[%clk 0:02:57]}  Nf6 {[%clk 0:02:50]} 3. Bg2 {[%clk 0:02:58]}  g6 {[%clk 0:02:51]} 4. O-O {[%clk 0:02:57]}  Bg7 {[%clk 0:02:51]} 5. d4 {[%clk 0:02:58]}  O-O {[%clk 0:02:52]} 6. c4 {[%clk 0:02:58]}  d6 {[%clk 0:02:52]} 7. Nc3 {[%clk 0:02:59]}  c6 {[%clk 0:02:51]} 8. d5 {[%clk 0:02:59]}  e5 {[%clk 0:02:51]} 9. dxe6 {[%clk 0:02:58]}  Bxe6 {[%clk 0:02:51]} 10. Qd3 {[%clk 0:02:55]}  Na6 {[%clk 0:02:41]} 11. Ng5 {[%clk 0:02:54]}  Bc8 {[%clk 0:02:38]} 12. Bf4 {[%clk 0:02:52]}  h6 {[%clk 0:02:37]} 13. Nf3 {[%clk 0:02:51]}  d5 {[%clk 0:02:32]} 14. cxd5 {[%clk 0:02:50]}  Nb4 {[%clk 0:02:32]} 15. Qc4 {[%clk 0:02:49]}  Nbxd5 {[%clk 0:02:31]} 16. Rfd1 {[%clk 0:02:48]}  Be6 {[%clk 0:02:31]} 17. Be5 {[%clk 0:02:45]}  Qe7 {[%clk 0:02:28]} 18. Nd4 {[%clk 0:02:41]}  Bf7 {[%clk 0:02:12]} 19. Nxd5 {[%clk 0:02:38]}  Qxe5 {[%clk 0:01:55]} 20. Nxf6+ {[%clk 0:02:35]}  Bxf6 {[%clk 0:01:51]} 21. Qc2 {[%clk 0:02:34]}  Rad8 {[%clk 0:01:43]} 22. e3 {[%clk 0:02:33]}  c5 {[%clk 0:01:40]} 23. Nb5 {[%clk 0:02:32]}  Qxb2 {[%clk 0:01:28]} 24. Qxb2 {[%clk 0:02:32]}  Bxb2 {[%clk 0:01:29]} 25. Rxd8 {[%clk 0:02:32]}  Rxd8 {[%clk 0:01:25]} 26. Rb1 {[%clk 0:02:32]}  a6 {[%clk 0:01:01]} 27. Nc7 {[%clk 0:02:11]}  Be5 {[%clk 0:00:49]} 28. Nd5 {[%clk 0:02:07]}  Rxd5 {[%clk 0:00:46]} 29. Bxd5 {[%clk 0:02:05]}  Bxd5 {[%clk 0:00:47]} 30. f4 {[%clk 0:02:05]}  Bf6 {[%clk 0:00:42]} 31. a4 {[%clk 0:02:04]}  Bc6 {[%clk 0:00:40]} 32. Kf2 {[%clk 0:02:03]}  Kf7 {[%clk 0:00:39]} 33. h3 {[%clk 0:02:01]}  Ke6 {[%clk 0:00:36]} 34. g4 {[%clk 0:02:01]}  fxg4 {[%clk 0:00:34]} 35. hxg4 {[%clk 0:02:02]}  h5 {[%clk 0:00:34]} 36. g5 {[%clk 0:01:59]}  Be7 {[%clk 0:00:33]} 37. Ke2 {[%clk 0:01:57]}  b5 {[%clk 0:00:30]} 38. axb5 {[%clk 0:01:56]}  axb5 {[%clk 0:00:31]} 39. Kd3 {[%clk 0:01:55]}  c4+ {[%clk 0:00:31]} 40. Kd4 {[%clk 0:01:55]}  h4 {[%clk 0:00:30]} 41. e4 {[%clk 0:01:51]}  Bd8 {[%clk 0:00:24]} 42. Rf1 {[%clk 0:01:36]}  Bb6+ {[%clk 0:00:22]} 43. Kc3 {[%clk 0:01:36]}  Bxe4 {[%clk 0:00:22]} 44. Kb4 {[%clk 0:01:37]}  Bc6 {[%clk 0:00:20]} 45. f5+ {[%clk 0:01:34]}  gxf5 {[%clk 0:00:20]} 46. g6 {[%clk 0:01:34]}  Kf6 {[%clk 0:00:21]} 47. g7 {[%clk 0:01:35]}  Kxg7 {[%clk 0:00:13]} 48. Rxf5 {[%clk 0:01:35]}  h3 {[%clk 0:00:11]} 49. Rh5 {[%clk 0:01:35]}  Bg2 {[%clk 0:00:05]} 50. Kxb5 {[%clk 0:01:32]}  c3 {[%clk 0:00:05]} 51. Kxb6 {[%clk 0:01:29]}  c2 {[%clk 0:00:04]} 52. Rc5 {[%clk 0:01:28]}  h2 {[%clk 0:00:04]} 53. Rg5+ {[%clk 0:01:26]}  Kf6 {[%clk 0:00:04]} 54. Rxg2 {[%clk 0:01:27]}  c1=Q {[%clk 0:00:01]} 55. Rxh2 {[%clk 0:01:28]} 1-0


[Site "https://www.chess.com"]

[Event "Titled Tuesday Blitz January 03 Late 2023"]
[White "Sariego Figueredo, Wilfredo"]
[Black "Papayan, Oleg"]
[WhiteFideId "3500080"]
[BlackFideId "4193911"]
[WhiteElo "2318"]
[BlackElo "2253"]
[Result "0-1"]
[Round "09"]
[TimeControl "180+2"]
[Date "2023.01.03"]
[WhiteClock "0:00:03"]
[BlackClock "0:00:23"]

1. d4 {[%clk 0:02:58]}  Nf6 {[%clk 0:02:59]} 2. Bf4 {[%clk 0:02:56]}  d5 {[%clk 0:02:58]} 3. e3 {[%clk 0:02:56]}  c5 {[%clk 0:02:59]} 4. c3 {[%clk 0:02:55]}  Nc6 {[%clk 0:02:58]} 5. Nd2 {[%clk 0:02:54]}  Qb6 {[%clk 0:02:55]} 6. Qb3 {[%clk 0:02:53]}  c4 {[%clk 0:02:42]} 7. Qxb6 {[%clk 0:02:53]}  axb6 {[%clk 0:02:42]} 8. Ngf3 {[%clk 0:02:33]}  b5 {[%clk 0:02:41]} 9. Be2 {[%clk 0:02:32]}  b4 {[%clk 0:02:38]} 10. O-O {[%clk 0:02:26]}  bxc3 {[%clk 0:02:36]} 11. bxc3 {[%clk 0:02:27]}  Ra3 {[%clk 0:02:34]} 12. Nb1 {[%clk 0:02:25]}  Ra5 {[%clk 0:02:30]} 13. a4 {[%clk 0:02:23]}  Bf5 {[%clk 0:02:24]} 14. Nbd2 {[%clk 0:02:15]}  e6 {[%clk 0:01:57]} 15. Rfc1 {[%clk 0:01:58]}  h6 {[%clk 0:01:57]} 16. Ne5 {[%clk 0:01:54]}  Nxe5 {[%clk 0:01:51]} 17. Bxe5 {[%clk 0:01:53]}  Kd7 {[%clk 0:01:42]} 18. Ra2 {[%clk 0:01:32]}  Be7 {[%clk 0:01:13]} 19. Rca1 {[%clk 0:01:28]}  Rha8 {[%clk 0:01:12]} 20. h3 {[%clk 0:01:25]}  b5 {[%clk 0:00:59]} 21. Bd1 {[%clk 0:01:13]}  b4 {[%clk 0:00:59]} 22. cxb4 {[%clk 0:01:03]}  Bxb4 {[%clk 0:01:00]} 23. Nf3 {[%clk 0:00:26]}  Ne8 {[%clk 0:00:41]} 24. Bg3 {[%clk 0:00:17]}  f6 {[%clk 0:00:41]} 25. Bc2 {[%clk 0:00:14]}  Bxc2 {[%clk 0:00:38]} 26. Rxc2 {[%clk 0:00:15]}  Rxa4 {[%clk 0:00:38]} 27. Rxa4 {[%clk 0:00:13]}  Rxa4 {[%clk 0:00:39]} 28. Kh2 {[%clk 0:00:14]}  Nd6 {[%clk 0:00:37]} 29. Bxd6 {[%clk 0:00:13]}  Kxd6 {[%clk 0:00:33]} 30. Ng1 {[%clk 0:00:11]}  e5 {[%clk 0:00:29]} 31. Ne2 {[%clk 0:00:11]}  Ra3 {[%clk 0:00:27]} 32. dxe5+ {[%clk 0:00:09]}  fxe5 {[%clk 0:00:28]} 33. Kg3 {[%clk 0:00:06]}  Kc5 {[%clk 0:00:28]} 34. Kg4 {[%clk 0:00:06]}  g6 {[%clk 0:00:26]} 35. Nc1 {[%clk 0:00:05]}  d4 {[%clk 0:00:23]} 36. exd4+ {[%clk 0:00:05]}  exd4 {[%clk 0:00:24]} 37. Re2 {[%clk 0:00:03]}  d3 {[%clk 0:00:23]} 0-1


[Site "https://www.chess.com"]

[Event "Titled Tuesday Blitz January 03 Late 2023"]
[White "Zakarian, David"]
[Black "Curtis, John"]
[WhiteFideId "13301276"]
[BlackFideId "3200256"]
[WhiteElo "2306"]
[BlackElo "2292"]
[Result "1-0"]
[Round "09"]
[TimeControl "180+2"]
[Date "2023.01.03"]
[WhiteClock "0:00:10"]
[BlackClock "0:00:01"]

1. e4 {[%clk 0:03:00]}  c5 {[%clk 0:02:50]} 2. Nf3 {[%clk 0:03:00]}  d6 {[%clk 0:02:50]} 3. Bb5+ {[%clk 0:03:00]}  Nd7 {[%clk 0:02:49]} 4. O-O {[%clk 0:02:59]}  e6 {[%clk 0:02:50]} 5. Re1 {[%clk 0:02:55]}  a6 {[%clk 0:02:49]} 6. Bf1 {[%clk 0:02:54]}  b5 {[%clk 0:02:49]} 7. a4 {[%clk 0:02:52]}  b4 {[%clk 0:02:47]} 8. d4 {[%clk 0:02:47]}  cxd4 {[%clk 0:02:45]} 9. Qxd4 {[%clk 0:02:42]}  a5 {[%clk 0:02:36]} 10. Bg5 {[%clk 0:02:34]}  Ngf6 {[%clk 0:02:35]} 11. Nbd2 {[%clk 0:02:17]}  Ba6 {[%clk 0:02:22]} 12. Nc4 {[%clk 0:02:14]}  Bxc4 {[%clk 0:02:21]} 13. Bxc4 {[%clk 0:02:14]}  Be7 {[%clk 0:02:20]} 14. Rad1 {[%clk 0:02:11]}  O-O {[%clk 0:02:16]} 15. b3 {[%clk 0:01:58]}  Rc8 {[%clk 0:02:09]} 16. h3 {[%clk 0:01:55]}  Qc7 {[%clk 0:01:58]} 17. Bh4 {[%clk 0:01:48]}  Nb6 {[%clk 0:01:38]} 18. Bd3 {[%clk 0:01:47]}  Qc5 {[%clk 0:01:21]} 19. Qa1 {[%clk 0:01:34]}  Qc3 {[%clk 0:01:17]} 20. Qc1 {[%clk 0:01:30]}  Rfd8 {[%clk 0:01:13]} 21. Re3 {[%clk 0:01:12]}  Qc7 {[%clk 0:01:04]} 22. Nd4 {[%clk 0:01:10]}  d5 {[%clk 0:00:54]} 23. Nb5 {[%clk 0:00:54]}  Qb7 {[%clk 0:00:51]} 24. e5 {[%clk 0:00:53]}  Ne8 {[%clk 0:00:48]} 25. Bxe7 {[%clk 0:00:45]}  Qxe7 {[%clk 0:00:48]} 26. Rg3 {[%clk 0:00:45]}  g6 {[%clk 0:00:44]} 27. Qh6 {[%clk 0:00:43]}  Nd7 {[%clk 0:00:41]} 28. Re1 {[%clk 0:00:40]}  Nc5 {[%clk 0:00:31]} 29. h4 {[%clk 0:00:35]}  Nxd3 {[%clk 0:00:30]} 30. cxd3 {[%clk 0:00:36]}  Qf8 {[%clk 0:00:18]} 31. Qf4 {[%clk 0:00:34]}  Qg7 {[%clk 0:00:17]} 32. h5 {[%clk 0:00:33]}  Rc5 {[%clk 0:00:17]} 33. d4 {[%clk 0:00:27]}  Rc2 {[%clk 0:00:15]} 34. Qh4 {[%clk 0:00:18]}  Rdc8 {[%clk 0:00:14]} 35. h6 {[%clk 0:00:15]}  Qf8 {[%clk 0:00:14]} 36. Qg5 {[%clk 0:00:15]}  R2c6 {[%clk 0:00:10]} 37. Rf3 {[%clk 0:00:15]}  Rb6 {[%clk 0:00:06]} 38. Rc1 {[%clk 0:00:13]}  Rxc1+ {[%clk 0:00:06]} 39. Qxc1 {[%clk 0:00:14]}  Rb8 {[%clk 0:00:02]} 40. g4 {[%clk 0:00:12]}  Qe7 {[%clk 0:00:01]} 41. g5 {[%clk 0:00:10]} 1-0


[Site "https://www.chess.com"]

[Event "Titled Tuesday Blitz January 03 Late 2023"]
[White "qiaohu_henry"]
[Black "Liu, Casper"]
[BlackFideId "1454153"]
[WhiteElo "2253"]
[BlackElo "2278"]
[Result "1-0"]
[Round "09"]
[TimeControl "180+2"]
[Date "2023.01.03"]
[WhiteClock "0:00:18"]
[BlackClock "0:00:20"]

1. d4 {[%clk 0:02:58]}  f5 {[%clk 0:02:55]} 2. g3 {[%clk 0:02:56]}  c5 {[%clk 0:02:55]} 3. dxc5 {[%clk 0:02:54]}  e6 {[%clk 0:02:53]} 4. Be3 {[%clk 0:02:47]}  Na6 {[%clk 0:02:47]} 5. Bg2 {[%clk 0:02:43]}  Nxc5 {[%clk 0:02:40]} 6. Nf3 {[%clk 0:02:37]}  Nf6 {[%clk 0:02:40]} 7. O-O {[%clk 0:02:37]}  Nce4 {[%clk 0:02:39]} 8. c4 {[%clk 0:02:25]}  Ng4 {[%clk 0:02:37]} 9. Bd4 {[%clk 0:02:13]}  Bc5 {[%clk 0:02:20]} 10. Bxc5 {[%clk 0:02:01]}  Nxc5 {[%clk 0:02:21]} 11. h3 {[%clk 0:02:02]}  Nf6 {[%clk 0:02:20]} 12. Nc3 {[%clk 0:01:43]}  O-O {[%clk 0:02:19]} 13. Nd4 {[%clk 0:01:31]}  Rb8 {[%clk 0:02:07]} 14. Ndb5 {[%clk 0:01:26]}  a6 {[%clk 0:02:04]} 15. Nd6 {[%clk 0:01:26]}  a5 {[%clk 0:01:36]} 16. a3 {[%clk 0:01:19]}  b6 {[%clk 0:01:11]} 17. b4 {[%clk 0:01:15]}  axb4 {[%clk 0:01:12]} 18. axb4 {[%clk 0:01:16]}  Na6 {[%clk 0:01:12]} 19. Qb3 {[%clk 0:01:03]}  Qe7 {[%clk 0:01:02]} 20. Nxc8 {[%clk 0:01:01]}  Qxb4 {[%clk 0:01:00]} 21. Qxb4 {[%clk 0:01:00]}  Nxb4 {[%clk 0:01:01]} 22. Nd6 {[%clk 0:00:56]}  g5 {[%clk 0:00:52]} 23. e3 {[%clk 0:00:44]}  e5 {[%clk 0:00:51]} 24. Rab1 {[%clk 0:00:42]}  Nd3 {[%clk 0:00:51]} 25. Nd5 {[%clk 0:00:39]}  e4 {[%clk 0:00:49]} 26. Nxf6+ {[%clk 0:00:39]}  Rxf6 {[%clk 0:00:50]} 27. Nb5 {[%clk 0:00:37]}  Rc8 {[%clk 0:00:49]} 28. f3 {[%clk 0:00:26]}  Re6 {[%clk 0:00:36]} 29. fxe4 {[%clk 0:00:26]}  fxe4 {[%clk 0:00:37]} 30. Nd4 {[%clk 0:00:24]}  Ree8 {[%clk 0:00:35]} 31. Rxb6 {[%clk 0:00:22]}  Rxc4 {[%clk 0:00:35]} 32. Rb5 {[%clk 0:00:19]}  h6 {[%clk 0:00:31]} 33. h4 {[%clk 0:00:18]}  gxh4 {[%clk 0:00:30]} 34. gxh4 {[%clk 0:00:19]}  Kh8 {[%clk 0:00:29]} 35. Rh5 {[%clk 0:00:19]}  Kh7 {[%clk 0:00:25]} 36. Rhf5 {[%clk 0:00:19]}  Rg8 {[%clk 0:00:25]} 37. Rf7+ {[%clk 0:00:19]}  Kh8 {[%clk 0:00:25]} 38. Kh1 {[%clk 0:00:19]}  Ra4 {[%clk 0:00:24]} 39. Bxe4 {[%clk 0:00:19]}  Rg3 {[%clk 0:00:20]} 40. Rf8+ {[%clk 0:00:19]}  Kg7 {[%clk 0:00:20]} 41. R1f7# {[%clk 0:00:18]} 1-0


[Site "https://www.chess.com"]

[Event "Titled Tuesday Blitz January 03 Late 2023"]
[White "Vifleemskaia, Svetlana"]
[Black "Hernandez Sanchez, Elvis De La Caridad"]
[WhiteFideId "4129490"]
[BlackFideId "6400353"]
[WhiteElo "1971"]
[BlackElo "2243"]
[Result "1/2-1/2"]
[Round "09"]
[TimeControl "180+2"]
[Date "2023.01.03"]
[WhiteClock "0:00:05"]
[BlackClock "0:00:04"]

1. d4 {[%clk 0:03:00]}  Nf6 {[%clk 0:02:58]} 2. c4 {[%clk 0:03:01]}  g6 {[%clk 0:02:58]} 3. Nc3 {[%clk 0:03:01]}  Bg7 {[%clk 0:02:58]} 4. e4 {[%clk 0:03:01]}  d6 {[%clk 0:02:58]} 5. Nge2 {[%clk 0:03:02]}  h5 {[%clk 0:02:43]} 6. Bg5 {[%clk 0:03:01]}  h4 {[%clk 0:02:38]} 7. h3 {[%clk 0:03:00]}  Rh5 {[%clk 0:02:32]} 8. Qd2 {[%clk 0:02:57]}  a6 {[%clk 0:02:30]} 9. g4 {[%clk 0:02:45]}  hxg3 {[%clk 0:02:26]} 10. Nxg3 {[%clk 0:02:45]}  Rh8 {[%clk 0:02:24]} 11. Bg2 {[%clk 0:02:45]}  Nc6 {[%clk 0:02:18]} 12. d5 {[%clk 0:02:37]}  Ne5 {[%clk 0:02:17]} 13. Qe2 {[%clk 0:02:30]}  b5 {[%clk 0:02:06]} 14. cxb5 {[%clk 0:02:26]}  axb5 {[%clk 0:02:06]} 15. Qxb5+ {[%clk 0:02:23]}  c6 {[%clk 0:01:27]} 16. dxc6 {[%clk 0:02:15]}  Ba6 {[%clk 0:01:25]} 17. c7+ {[%clk 0:02:13]}  Qd7 {[%clk 0:01:25]} 18. c8=Q+ {[%clk 0:02:04]}  Bxc8 {[%clk 0:01:15]} 19. Qxd7+ {[%clk 0:01:57]}  Bxd7 {[%clk 0:01:15]} 20. O-O {[%clk 0:01:55]}  Bxh3 {[%clk 0:01:10]} 21. Bxf6 {[%clk 0:01:49]}  Bxf6 {[%clk 0:01:07]} 22. Nd5 {[%clk 0:01:46]}  Rb8 {[%clk 0:00:57]} 23. Nxf6+ {[%clk 0:01:45]}  exf6 {[%clk 0:00:58]} 24. b3 {[%clk 0:01:42]}  Ke7 {[%clk 0:00:56]} 25. Bxh3 {[%clk 0:01:38]}  Rxh3 {[%clk 0:00:57]} 26. Kg2 {[%clk 0:01:38]}  Rh4 {[%clk 0:00:51]} 27. Rh1 {[%clk 0:01:32]}  Rf4 {[%clk 0:00:49]} 28. Rab1 {[%clk 0:01:13]}  Nd3 {[%clk 0:00:41]} 29. Rhf1 {[%clk 0:01:06]}  Ra8 {[%clk 0:00:41]} 30. a4 {[%clk 0:01:05]}  Nc5 {[%clk 0:00:37]} 31. f3 {[%clk 0:01:03]}  Rb8 {[%clk 0:00:32]} 32. Ne2 {[%clk 0:01:02]}  Rh4 {[%clk 0:00:29]} 33. Nd4 {[%clk 0:01:03]}  Kd7 {[%clk 0:00:27]} 34. a5 {[%clk 0:01:01]}  Na6 {[%clk 0:00:21]} 35. Rfc1 {[%clk 0:00:53]}  Rb4 {[%clk 0:00:20]} 36. Rc4 {[%clk 0:00:49]}  Rh5 {[%clk 0:00:18]} 37. Rxb4 {[%clk 0:00:34]}  Nxb4 {[%clk 0:00:19]} 38. Ra1 {[%clk 0:00:34]}  Na6 {[%clk 0:00:18]} 39. b4 {[%clk 0:00:30]}  Nxb4 {[%clk 0:00:16]} 40. a6 {[%clk 0:00:30]}  Rh8 {[%clk 0:00:16]} 41. a7 {[%clk 0:00:30]}  Ra8 {[%clk 0:00:16]} 42. Kf2 {[%clk 0:00:26]}  Nc6 {[%clk 0:00:15]} 43. Nb5 {[%clk 0:00:22]}  Ne5 {[%clk 0:00:12]} 44. Ke3 {[%clk 0:00:21]}  Kc6 {[%clk 0:00:10]} 45. Rb1 {[%clk 0:00:11]}  Nc4+ {[%clk 0:00:09]} 46. Kd4 {[%clk 0:00:10]}  Nb6 {[%clk 0:00:09]} 47. f4 {[%clk 0:00:06]}  Nd7 {[%clk 0:00:09]} 48. Kc4 {[%clk 0:00:04]}  Nb6+ {[%clk 0:00:08]} 49. Kb4 {[%clk 0:00:03]}  Nd7 {[%clk 0:00:08]} 50. Rc1+ {[%clk 0:00:03]}  Nc5 {[%clk 0:00:08]} 51. Rd1 {[%clk 0:00:02]}  Nb7 {[%clk 0:00:07]} 52. Rc1+ {[%clk 0:00:02]}  Nc5 {[%clk 0:00:07]} 53. Re1 {[%clk 0:00:03]}  g5 {[%clk 0:00:06]} 54. fxg5 {[%clk 0:00:02]}  fxg5 {[%clk 0:00:07]} 55. Rf1 {[%clk 0:00:02]}  g4 {[%clk 0:00:06]} 56. Rxf7 {[%clk 0:00:02]}  Nxe4 {[%clk 0:00:06]} 57. Rf4 {[%clk 0:00:02]}  d5 {[%clk 0:00:05]} 58. Rxg4 {[%clk 0:00:02]}  d4 {[%clk 0:00:04]} 59. Rg6+ {[%clk 0:00:02]}  Kb7 {[%clk 0:00:04]} 60. Rg7+ {[%clk 0:00:03]}  Kb6 {[%clk 0:00:03]} 61. Rg6+ {[%clk 0:00:03]}  Kb7 {[%clk 0:00:03]} 62. Rg7+ {[%clk 0:00:03]}  Kb6 {[%clk 0:00:04]} 63. Rg4 {[%clk 0:00:03]}  Nf6 {[%clk 0:00:02]} 64. Rxd4 {[%clk 0:00:04]}  Ne8 {[%clk 0:00:02]} 65. Re4 {[%clk 0:00:04]}  Nc7 {[%clk 0:00:02]} 66. Re5 {[%clk 0:00:03]}  Nxb5 {[%clk 0:00:02]} 67. Rxb5+ {[%clk 0:00:04]}  Kxa7 {[%clk 0:00:03]} 68. Ra5+ {[%clk 0:00:04]}  Kb7 {[%clk 0:00:03]} 69. Rxa8 {[%clk 0:00:05]}  Kxa8 {[%clk 0:00:04]} 1/2-1/2


[Site "https://www.chess.com"]

[Event "Titled Tuesday Blitz January 03 Late 2023"]
[White "Corredor Castellanos, Camilo"]
[Black "Eisa Mohmood, Alkhoori"]
[WhiteFideId "4425871"]
[BlackFideId "9316116"]
[WhiteElo "1957"]
[BlackElo "1095"]
[Result "1/2-1/2"]
[Round "09"]
[TimeControl "180+2"]
[Date "2023.01.03"]
[WhiteClock "0:02:45"]
[BlackClock "0:02:28"]

1. d4 {[%clk 0:02:59]}  Nf6 {[%clk 0:02:59]} 2. c4 {[%clk 0:02:59]}  g6 {[%clk 0:02:49]} 3. Nf3 {[%clk 0:02:58]}  Bg7 {[%clk 0:02:49]} 4. Nc3 {[%clk 0:02:58]}  d5 {[%clk 0:02:49]} 5. cxd5 {[%clk 0:02:56]}  Nxd5 {[%clk 0:02:50]} 6. e4 {[%clk 0:02:56]}  Nxc3 {[%clk 0:02:51]} 7. bxc3 {[%clk 0:02:57]}  c5 {[%clk 0:02:51]} 8. Be3 {[%clk 0:02:58]}  Qa5 {[%clk 0:02:45]} 9. Nd2 {[%clk 0:02:57]}  O-O {[%clk 0:02:34]} 10. Nb3 {[%clk 0:02:43]}  Qxc3+ {[%clk 0:02:30]} 11. Bd2 {[%clk 0:02:43]}  Qb2 {[%clk 0:02:28]} 12. Bc1 {[%clk 0:02:44]}  Qc3+ {[%clk 0:02:27]} 13. Bd2 {[%clk 0:02:44]}  Qb2 {[%clk 0:02:28]} 14. Bc1 {[%clk 0:02:44]}  Qc3+ {[%clk 0:02:28]} 15. Bd2 {[%clk 0:02:45]} 1/2-1/2


[Site "https://www.chess.com"]

[Event "Titled Tuesday Blitz January 03 Late 2023"]
[White "Sloan, Julia Elizabeth"]
[Black "Bochnicka, Vladimir"]
[WhiteFideId "2018950"]
[BlackFideId "14943450"]
[WhiteElo "2087"]
[BlackElo "2327"]
[Result "0-1"]
[Round "09"]
[TimeControl "180+2"]
[Date "2023.01.03"]
[WhiteClock "0:01:40"]
[BlackClock "0:01:02"]

1. d4 {[%clk 0:02:59]}  Nf6 {[%clk 0:02:42]} 2. c4 {[%clk 0:02:58]}  g6 {[%clk 0:02:43]} 3. f3 {[%clk 0:02:57]}  Bg7 {[%clk 0:02:43]} 4. e4 {[%clk 0:02:57]}  O-O {[%clk 0:02:44]} 5. Nc3 {[%clk 0:02:57]}  d6 {[%clk 0:02:45]} 6. Bg5 {[%clk 0:02:55]}  h6 {[%clk 0:02:43]} 7. Bf4 {[%clk 0:02:54]}  Nbd7 {[%clk 0:02:41]} 8. Qd3 {[%clk 0:02:51]}  e5 {[%clk 0:02:40]} 9. Be3 {[%clk 0:02:48]}  c6 {[%clk 0:02:37]} 10. d5 {[%clk 0:02:47]}  c5 {[%clk 0:02:37]} 11. Qd2 {[%clk 0:02:46]}  a6 {[%clk 0:02:37]} 12. Bxh6 {[%clk 0:02:45]}  Rb8 {[%clk 0:02:34]} 13. h4 {[%clk 0:02:43]}  Nh5 {[%clk 0:02:25]} 14. Bxg7 {[%clk 0:02:39]}  Kxg7 {[%clk 0:02:25]} 15. Nge2 {[%clk 0:02:31]}  b5 {[%clk 0:02:23]} 16. g4 {[%clk 0:02:31]}  Nf4 {[%clk 0:02:17]} 17. Nxf4 {[%clk 0:02:30]}  exf4 {[%clk 0:02:17]} 18. cxb5 {[%clk 0:02:29]}  Ne5 {[%clk 0:02:15]} 19. Qxf4 {[%clk 0:02:23]}  axb5 {[%clk 0:02:15]} 20. h5 {[%clk 0:02:14]}  g5 {[%clk 0:02:14]} 21. Qe3 {[%clk 0:02:11]}  Qf6 {[%clk 0:02:06]} 22. Be2 {[%clk 0:02:08]}  b4 {[%clk 0:02:04]} 23. Nd1 {[%clk 0:02:07]}  Kh6 {[%clk 0:01:49]} 24. O-O {[%clk 0:02:06]}  Qf4 {[%clk 0:01:33]} 25. Qxf4 {[%clk 0:02:04]}  gxf4 {[%clk 0:01:34]} 26. Nf2 {[%clk 0:02:03]}  c4 {[%clk 0:01:28]} 27. Rfc1 {[%clk 0:02:00]}  Ba6 {[%clk 0:01:22]} 28. Nh3 {[%clk 0:02:00]}  c3 {[%clk 0:01:20]} 29. Bxa6 {[%clk 0:01:56]}  cxb2 {[%clk 0:01:20]} 30. Rab1 {[%clk 0:01:54]}  bxc1=Q+ {[%clk 0:01:20]} 31. Rxc1 {[%clk 0:01:55]}  Ra8 {[%clk 0:01:15]} 32. Bc4 {[%clk 0:01:50]}  Rfc8 {[%clk 0:01:15]} 33. Nxf4 {[%clk 0:01:41]}  Rxa2 {[%clk 0:01:04]} 34. Bxa2 {[%clk 0:01:40]}  Rxc1+ {[%clk 0:01:04]} 35. Kf2 {[%clk 0:01:40]}  Rc2+ {[%clk 0:01:05]} 36. Ke3 {[%clk 0:01:40]}  Rxa2 {[%clk 0:01:04]} 37. Nd3 {[%clk 0:01:40]}  Ra3 {[%clk 0:01:02]} 0-1


[Site "https://www.chess.com"]

[Event "Titled Tuesday Blitz January 03 Late 2023"]
[White "Smith, Garrett L"]
[Black "Pesotskiy, Mikhail"]
[WhiteFideId "2024829"]
[BlackFideId "34164453"]
[WhiteElo "2047"]
[BlackElo "2153"]
[Result "0-1"]
[Round "09"]
[TimeControl "180+2"]
[Date "2023.01.03"]
[WhiteClock "0:00:23"]
[BlackClock "0:01:22"]

1. e4 {[%clk 0:02:12]}  e6 {[%clk 0:02:08]} 2. d4 {[%clk 0:02:11]}  d5 {[%clk 0:02:08]} 3. Nc3 {[%clk 0:02:12]}  Nf6 {[%clk 0:02:06]} 4. e5 {[%clk 0:02:12]}  Nfd7 {[%clk 0:02:06]} 5. f4 {[%clk 0:02:13]}  c5 {[%clk 0:02:07]} 6. Nf3 {[%clk 0:02:13]}  Nc6 {[%clk 0:02:07]} 7. Be3 {[%clk 0:02:13]}  Qb6 {[%clk 0:02:08]} 8. Na4 {[%clk 0:02:13]}  Qa5+ {[%clk 0:02:08]} 9. c3 {[%clk 0:02:13]}  cxd4 {[%clk 0:02:07]} 10. b4 {[%clk 0:02:14]}  Qd8 {[%clk 0:02:06]} 11. Nxd4 {[%clk 0:02:13]}  Nxd4 {[%clk 0:02:06]} 12. Bxd4 {[%clk 0:02:06]}  Be7 {[%clk 0:02:03]} 13. Bd3 {[%clk 0:02:05]}  O-O {[%clk 0:02:03]} 14. O-O {[%clk 0:02:03]}  f5 {[%clk 0:02:01]} 15. Qd2 {[%clk 0:01:52]}  Nb6 {[%clk 0:02:00]} 16. Nc5 {[%clk 0:01:45]}  Nc4 {[%clk 0:01:58]} 17. Qe2 {[%clk 0:01:42]}  b6 {[%clk 0:01:58]} 18. Nb3 {[%clk 0:01:37]}  Qc7 {[%clk 0:01:51]} 19. Kh1 {[%clk 0:01:37]}  Bd7 {[%clk 0:01:49]} 20. Rac1 {[%clk 0:01:36]}  a5 {[%clk 0:01:45]} 21. bxa5 {[%clk 0:01:28]}  bxa5 {[%clk 0:01:46]} 22. Rf3 {[%clk 0:01:26]}  a4 {[%clk 0:01:40]} 23. Nd2 {[%clk 0:01:25]}  Rfc8 {[%clk 0:01:34]} 24. Nxc4 {[%clk 0:01:12]}  dxc4 {[%clk 0:01:35]} 25. Bc2 {[%clk 0:01:12]}  Rab8 {[%clk 0:01:35]} 26. Rh3 {[%clk 0:01:11]}  Be8 {[%clk 0:01:33]} 27. Rg3 {[%clk 0:00:59]}  Rb2 {[%clk 0:01:31]} 28. Rb1 {[%clk 0:00:26]}  Rcb8 {[%clk 0:01:25]} 29. Rxb2 {[%clk 0:00:25]}  Rxb2 {[%clk 0:01:26]} 30. Rf3 {[%clk 0:00:23]}  a3 {[%clk 0:01:22]} 0-1


[Site "https://www.chess.com"]